bitfinex-derivatives/quotes_ETHF0:USTF0_20240925
["timestamp","ask_amount","ask_price","bid_price","bid_amount"]
[1727272767037,3.58966,2618.9,2618.7,0.3948]
[1727272767335,3.2078,2618.9,2618.7,0.3948]
[1727272767536,3.58966,2618.9,2618.7,0.3948]
[1727272768135,3.2078,2618.9,2618.7,0.3948]
[1727272768532,3.58965,2618.9,2618.7,0.3948]
[1727272768931,3.2078,2618.9,2618.7,0.3948]
[1727272769228,3.2078,2618.9,2618.7,0.77668]
[1727272769434,3.2078,2618.9,2618.7,0.3948]
[1727272769632,3.2078,2618.9,2618.8,7.83700852]
[1727272769823,3.2078,2618.9,2618.8,8.21887852]
[1727272770133,3.2078,2618.9,2618.8,7.83700852]
[1727272772334,3.2078,2618.9,2618.8,8.21887852]
[1727272772732,3.2078,2618.9,2618.8,12.03727852]
[1727272775935,3.2078,2618.9,2618.8,11.65540852]
[1727272776140,3.2078,2618.9,2618.8,7.83700852]
[1727272776341,3.58965,2618.9,2618.8,7.83700852]
[1727272776942,3.2078,2618.9,2618.8,7.83700852]
[1727272777147,3.58965,2618.9,2618.8,7.83700852]
[1727272777337,3.2078,2618.9,2618.8,7.83700852]
[1727272777637,3.2078,2618.9,2618.8,12.03727852]
[1727272778037,0.4047,2619.4,2619.2,0.3818]
[1727272778337,0.4047,2619.4,2619.3,0.3893]
[1727272778338,0.38178,2619.4,2619.3,0.3893]
[1727272780443,0.3965,2619.5,2619.3,0.77109]
[1727272780635,0.3965,2619.5,2619.3,0.3893]
[1727272780835,0.77828,2619.5,2619.4,0.3913]
[1727272785648,3.98608,2619.5,2619.4,0.3913]
[1727272786142,3.6043,2619.5,2619.4,0.3913]
[1727272786449,3.98607,2619.5,2619.4,0.3913]
[1727272787145,3.6043,2619.5,2619.4,0.3913]
[1727272787367,0.38176,2619.6,2619.4,0.3913]
[1727272787543,5.96956,2619.6,2619.4,0.3913]
[1727272787747,5.5878,2619.6,2619.4,0.3913]
[1727272787943,3.15233,2619.8,2619.4,0.77307]
[1727272788255,0.38174,2619.7,2619.5,0.3733]
[1727272788557,3.15234,2619.8,2619.5,0.3733]
[1727272788742,0.38174,2619.7,2619.5,0.3733]
[1727272789144,0.38174,2619.7,2619.4,0.77307]
[1727272789446,5.5878,2619.6,2619.4,0.3913]
[1727272791054,5.96955,2619.6,2619.4,0.3913]
[1727272791247,5.96956,2619.6,2619.4,0.3913]
[1727272793257,0.38177,2619.5,2619.4,0.3913]
[1727272793659,0.38178,2619.4,2619.3,0.3893]
[1727272794156,0.38178,2619.4,2619.3,8.46924733]
[1727272795255,5.9847,2619.6,2619.3,8.46924733]
[1727272795659,0.38178,2619.5,2619.3,8.46924733]
[1727272796256,0.38177,2619.5,2619.3,8.46924733]
[1727272796453,0.38178,2619.5,2619.3,8.46924733]
[1727272797254,0.38178,2619.4,2619.3,8.46924733]
[1727272797464,0.38178,2619.5,2619.3,8.46924733]
[1727272797957,0.38178,2619.5,2619.3,8.86284733]
[1727272799663,0.38178,2619.4,2619.3,8.46924733]
[1727272799968,0.38178,2619.4,2619.0,0.7667]
[1727272799969,0.38182,2619.2,2619.0,0.7667]
[1727272800260,2.7475,2619.4,2619.0,9.26145953]
[1727272800261,5.5878,2619.3,2619.0,9.26145953]
[1727272800461,0.3675,2619.4,2619.1,0.38182]
[1727272800462,0.74928,2619.4,2619.1,0.38182]
[1727272800685,3.2078,2619.6,2619.4,0.38178]
[1727272800862,3.2078,2619.6,2619.5,0.7667]
[1727272801359,3.2078,2619.6,2619.5,1.14847]
[1727272801765,3.73245,2620.0,2619.5,15.20259863]
[1727272801766,3.2078,2620.0,2619.5,15.20259863]
[1727272801964,0.089,2620.3,2619.7,2.38]
[1727272801965,0.38166,2620.3,2619.7,2.38]
[1727272802162,3.58945,2620.3,2620.2,2.38]
[1727272802357,3.58945,2620.3,2620.0,2.76169]
[1727272802562,3.2078,2620.3,2620.2,8.61995863]
[1727272802758,0.3857,2620.8,2620.5,0.38162]
[1727272802956,0.38158,2620.8,2620.6,0.4001]
[1727272803151,0.38159,2620.7,2620.6,0.4001]
[1727272803362,2.38,2620.8,2620.6,0.4001]
[1727272803761,0.38159,2620.7,2620.1,0.7842]
[1727272803969,2.38,2620.2,2620.1,0.3814]
[1727272804259,2.38,2620.2,2620.1,8.43365408]
[1727272804563,3.13276,2620.2,2620.1,8.05225408]
[1727272804761,0.3711,2620.2,2619.9,0.4001]
[1727272804958,2.38,2620.1,2619.9,0.4001]
[1727272805154,2.38,2620.1,2620.0,8.03988537]
[1727272805362,2.76168,2620.1,2620.0,8.03988537]
[1727272805667,2.38,2620.1,2620.0,8.03988537]
[1727272805861,2.76168,2620.1,2620.0,8.03988537]
[1727272806067,2.38,2620.1,2620.0,8.03988537]
[1727272806253,2.76168,2620.1,2620.0,8.03988537]
[1727272806579,0.38173,2619.8,2619.5,0.4031]
[1727272806865,2.38,2619.7,2619.5,8.39987709]
[1727272807058,0.38172,2619.8,2619.5,8.39987709]
[1727272807253,0.38172,2619.8,2619.5,0.4031]
[1727272807254,0.3711,2619.8,2619.5,0.4031]
[1727272807465,0.3711,2619.8,2619.6,7.99677709]
[1727272807657,5.5878,2619.9,2619.6,7.99677709]
[1727272807860,3.2078,2619.9,2619.7,0.7678]
[1727272808165,5.5878,2619.9,2619.8,8.20336442]
[1727272808365,5.96951,2619.9,2619.8,8.20336442]
[1727272808567,0.38173,2619.8,2619.6,8.20336442]
[1727272808871,3.2078,2619.9,2619.5,0.78486]
[1727272809366,3.2078,2619.9,2619.6,7.99582483]
[1727272809684,2.76174,2619.7,2619.6,7.99582483]
[1727272809880,2.38,2619.7,2619.5,0.4031]
[1727272810058,5.96952,2619.9,2619.5,0.4031]
[1727272810255,3.2078,2619.9,2619.6,7.93662407]
[1727272810658,0.3932,2620.1,2619.7,0.77233]
[1727272810854,0.3932,2620.1,2619.8,0.3684]
[1727272811056,2.7617,2620.0,2619.8,0.3684]
[1727272811568,3.2078,2619.9,2619.8,0.3684]
[1727272811766,3.58951,2619.9,2619.7,0.3906]
[1727272812064,3.2078,2619.9,2619.7,0.3906]
[1727272813470,3.2078,2619.9,2619.8,7.87213806]
[1727272814962,3.2078,2619.9,2619.8,8.25385806]
[1727272815169,3.2078,2619.9,2619.8,12.07065806]
[1727272815466,3.2078,2620.5,2619.8,22.92496585]
[1727272815659,3.58943,2620.5,2620.2,0.38166]
[1727272815857,3.2078,2620.5,2620.4,0.38164]
[1727272816374,3.2078,2621.0,2620.5,0.38161]
[1727272816557,3.2078,2621.0,2620.4,12.60039202]
[1727272816757,3.2078,2621.0,2620.6,7.81872372]
[1727272816954,3.2078,2621.0,2620.6,0.3816]
[1727272817169,3.58935,2621.0,2620.7,0.38159]
[1727272817472,0.38159,2620.8,2620.4,0.4004]
[1727272817662,5.96935,2621.0,2620.6,0.3816]
[1727272817864,5.96935,2621.0,2620.7,0.3867]
[1727272818062,3.58935,2621.0,2620.7,0.3867]
[1727272818866,3.58936,2621.0,2620.7,0.3867]
[1727272819369,3.2078,2621.0,2620.7,0.3867]
[1727272819563,1.34749,2621.3,2620.8,8.20793234]
[1727272819564,3.6015,2621.3,2620.8,8.20793234]
[1727272819766,3.6015,2621.3,2620.8,8.58951234]
[1727272819767,5.5878,2621.3,2620.8,8.58951234]
[1727272820066,5.96931,2621.3,2621.0,0.38155]
[1727272820368,5.96931,2621.3,2621.1,8.60473234]
[1727272820765,3.2078,2621.3,2621.1,0.77833]
[1727272820965,3.2078,2621.3,2621.2,8.49757835]
[1727272822165,3.2078,2621.3,2621.2,8.87909835]
[1727272822469,3.2078,2621.3,2621.2,8.49757835]
[1727272822663,2.76148,2621.5,2621.2,8.87909835]
[1727272822860,2.38,2621.5,2621.2,8.87909835]
[1727272823074,2.76148,2621.5,2621.2,8.87909835]
[1727272823260,0.3815,2621.4,2621.2,8.49757835]
[1727272823759,5.9693,2621.3,2621.2,8.49757835]
[1727272823966,6.3476,2621.3,2621.2,8.49757835]
[1727272824171,6.3476,2621.3,2621.2,8.09817835]
[1727272824372,5.9661,2621.3,2621.2,8.09817835]
[1727272824764,3.2078,2621.3,2621.2,8.47997835]
[1727272825164,3.5893,2621.3,2621.2,8.47997835]
[1727272825365,3.2078,2621.3,2621.2,8.47997835]
[1727272827372,3.2078,2621.3,2621.2,8.86149835]
[1727272827580,3.2078,2621.3,2621.2,12.67669835]
[1727272828265,3.2078,2621.3,2621.2,12.29517835]
[1727272828466,3.2078,2621.3,2621.2,8.47997835]
[1727272828660,2.76145,2621.7,2621.4,0.38148]
[1727272828863,3.2078,2621.5,2621.2,8.47997835]
[1727272829062,3.2078,2621.5,2621.4,0.38149]
[1727272829263,3.6069,2621.8,2621.5,0.38147]
[1727272829466,0.38145,2621.7,2621.6,0.7762]
[1727272829971,0.38142,2621.9,2621.7,0.38144]
[1727272830301,0.7832,2622.1,2621.8,0.38142]
[1727272830461,0.38136,2622.3,2622.0,0.38139]
[1727272830661,3.2078,2622.4,2622.1,0.3723]
[1727272830868,0.9533,2622.6,2622.1,13.09978078]
[1727272831069,0.38137,2622.2,2622.1,8.68583328]
[1727272831371,0.38143,2621.9,2621.6,0.38145]
[1727272831562,2.38,2622.0,2621.6,0.7762]
[1727272831755,2.38,2622.0,2621.9,7.95649609]
[1727272831756,2.7614,2622.0,2621.9,7.95649609]
[1727272831961,0.38145,2621.7,2621.6,8.73269609]
[1727272832162,0.38141,2622.0,2621.6,0.7762]
[1727272832467,3.991,2622.1,2621.8,0.38143]
[1727272832669,2.38,2622.0,2621.6,8.73269609]
[1727272832878,0.38145,2621.7,2621.6,8.73269609]
[1727272833080,0.38144,2621.8,2621.6,8.73269609]
[1727272833261,0.38144,2621.8,2621.6,9.11415609]
[1727272834076,2.38,2621.9,2621.6,9.11415609]
[1727272834271,0.38145,2621.7,2621.6,8.73269609]
[1727272835475,7.52947,2621.7,2621.6,7.95649609]
[1727272835661,2.76145,2621.7,2621.6,7.95649609]
[1727272835891,3.14615,2621.7,2621.6,7.95649609]
[1727272836075,0.38149,2621.4,2621.3,0.3827]
[1727272836371,5.96929,2621.4,2621.3,0.3827]
[1727272836677,5.96929,2621.4,2621.2,0.403]
[1727272836678,0.3815,2621.3,2621.2,0.403]
[1727272837772,6.1952,2621.3,2620.4,3.2078]
[1727272837986,0.38155,2621.0,2620.6,0.38161]
[1727272838183,3.58934,2621.1,2620.9,7.90599747]
[1727272838470,3.58934,2621.1,2620.7,0.38158]
[1727272838471,0.38154,2621.1,2620.7,8.28757747]
[1727272838696,0.3942,2621.2,2620.7,2.38]
[1727272838875,3.2078,2621.4,2620.9,10.77513141]
[1727272838876,3.5893,2621.4,2620.9,10.77513141]
[1727272839074,3.5893,2621.4,2621.0,0.3975]
[1727272839373,3.5893,2621.4,2621.1,0.3711]
[1727272839374,3.2078,2621.4,2621.1,0.3711]
[1727272839678,0.38152,2621.2,2621.1,0.3711]
[1727272839866,0.38153,2621.1,2621.0,8.41108141]
[1727272840064,3.98353,2621.1,2621.0,8.41108141]
[1727272840267,3.98353,2621.1,2620.3,0.4047]
[1727272840268,19.13104,2621.1,2619.8,3.2078]
[1727272840471,19.13104,2621.1,2619.9,1.1503]
[1727272840472,2.38,2620.3,2619.9,1.1503]
[1727272840669,2.38,2620.3,2620.2,7.90940017]
[1727272840866,2.38,2620.3,2619.9,12.68430093]
[1727272841089,2.76166,2620.3,2619.9,0.7686]
[1727272841274,2.76166,2620.3,2620.0,8.17922019]
[1727272841477,2.38,2620.3,2620.0,8.17922019]
[1727272841683,3.2078,2620.4,2620.0,8.56091019]
[1727272841867,3.58944,2620.4,2620.0,8.17922019]
[1727272842082,3.2078,2620.4,2620.0,8.17922019]
[1727272842786,3.2078,2620.4,2620.1,0.38167]
[1727272842967,3.58944,2620.4,2620.0,8.56091019]
[1727272843780,0.38165,2620.3,2620.0,8.56091019]
[1727272843979,3.58944,2620.4,2620.0,8.56091019]
[1727272844281,3.2078,2620.4,2620.0,8.17922019]
[1727272844487,3.2078,2620.4,2620.2,0.38166]
[1727272844677,3.6888,2621.0,2620.3,2.38]
[1727272844878,0.38157,2620.9,2620.6,0.3816]
[1727272845084,3.58936,2621.0,2620.6,0.769]
[1727272845784,0.38157,2620.9,2620.6,0.769]
[1727272846077,3.2078,2621.0,2620.6,0.769]
[1727272846272,0.38157,2620.9,2620.6,0.769]
[1727272846874,3.2078,2621.0,2620.6,0.3874]
[1727272847086,0.38158,2620.8,2620.6,0.3874]
[1727272847478,0.38157,2620.9,2620.6,4.585]
[1727272847677,0.38157,2620.9,2620.6,0.769]
[1727272848970,3.2078,2621.0,2620.6,0.3874]
[1727272849174,0.38158,2620.9,2620.6,0.76901]
[1727272849369,3.5968,2621.0,2620.6,0.3874]
[1727272849570,0.38159,2620.8,2620.6,0.3874]
[1727272849781,0.38159,2620.7,2620.6,0.3874]
[1727272849988,2.38,2620.9,2620.4,0.3851]
[1727272850287,0.38161,2620.6,2620.5,8.23816898]
[1727272850984,3.5894,2620.7,2620.5,8.23816898]
[1727272851179,3.58939,2620.7,2620.5,8.23816898]
[1727272851380,3.2078,2620.7,2620.5,8.23816898]
[1727272851584,3.2078,2620.7,2620.5,8.61978898]
[1727272851778,3.2078,2620.7,2620.5,8.61977898]
[1727272852287,3.2078,2620.7,2620.6,0.38161]
[1727272852874,3.2078,2620.7,2620.5,8.23816898]
[1727272853090,0.38161,2620.6,2620.5,8.23816898]
[1727272854069,3.5894,2620.7,2620.5,8.61977898]
[1727272854272,3.5894,2620.7,2620.5,8.23816898]
[1727272854481,3.2078,2620.7,2620.5,10.61816898]
[1727272854670,3.2078,2620.7,2620.6,0.38161]
[1727272854889,0.38157,2620.9,2620.7,0.38158]
[1727272855084,3.97836,2621.0,2620.8,0.3662]
[1727272855288,0.38156,2620.9,2620.8,0.3662]
[1727272855486,3.97836,2621.0,2620.8,0.74778]
[1727272855682,3.97836,2621.0,2620.8,0.3662]
[1727272855683,3.5968,2621.0,2620.8,0.3662]
[1727272855983,0.38156,2620.9,2620.8,0.3662]
[1727272856182,0.38156,2620.9,2620.8,0.7555]
[1727272856381,3.5968,2621.0,2620.8,1.13708]
[1727272856576,0.38156,2620.9,2620.8,0.7555]
[1727272859486,3.2078,2621.0,2620.9,0.38156]
[1727272860585,3.2078,2621.0,2620.9,8.3501293]
[1727272861108,2.38,2621.6,2620.9,10.3485693]
[1727272861388,2.38,2621.6,2621.4,2.76149]
[1727272861389,0.38147,2621.6,2621.4,2.76149]
[1727272861679,0.38145,2621.7,2621.5,0.4036]
[1727272861880,0.38146,2621.6,2621.5,0.7981]
[1727272862379,0.3815,2621.4,2621.1,0.3847]
[1727272862587,1.329,2621.8,2621.2,0.3699]
[1727272862783,0.3754,2621.8,2621.3,2.38]
[1727272862984,0.38145,2621.7,2621.5,0.38147]
[1727272863282,0.38145,2621.7,2621.3,2.38]
[1727272863283,0.38145,2621.7,2621.4,8.43029214]
[1727272863581,0.38148,2621.5,2621.4,8.04881214]
[1727272865175,0.3754,2621.8,2621.4,3.8144]
[1727272865480,0.3814,2622.0,2621.6,2.76146]
[1727272865669,3.5755,2622.2,2621.7,0.7972]
[1727272865670,1.147,2622.1,2621.7,0.7972]
[1727272865870,0.7656,2622.1,2621.7,8.90176248]
[1727272866076,1.147,2622.1,2621.7,9.28321248]
[1727272866275,0.7656,2622.1,2621.7,8.90176248]
[1727272866471,3.58918,2622.2,2621.9,2.38]
[1727272866675,3.2078,2622.2,2621.9,2.38]
[1727272866884,3.2078,2622.2,2621.9,2.76141]
[1727272867983,3.2078,2622.2,2621.8,0.38142]
[1727272867984,3.58917,2622.2,2621.8,0.38142]
[1727272868185,3.2078,2622.2,2621.9,0.38141]
[1727272868894,3.58918,2622.2,2621.8,12.63037487]
[1727272869276,3.58918,2622.2,2621.8,12.63036487]
[1727272869683,3.2078,2622.2,2621.8,12.63036487]
[1727272869881,3.2078,2622.2,2621.9,2.38]
[1727272870082,0.3728,2622.4,2622.1,0.38139]
[1727272870381,0.3728,2622.4,2622.2,0.4016]
[1727272870382,0.75415,2622.4,2622.2,0.4016]
[1727272870573,0.38136,2622.3,2622.0,8.18796215]
[1727272870774,0.38136,2622.3,2621.9,0.38142]
[1727272870775,3.2078,2622.3,2621.9,0.38142]
[1727272870972,3.58917,2622.3,2621.8,0.78302]
[1727272871194,3.58917,2622.3,2622.0,8.23984403]
[1727272871195,2.38,2622.2,2622.0,8.23984403]
[1727272871388,0.3814,2622.0,2621.9,8.23984403]
[1727272871586,0.38143,2621.9,2621.7,0.405]
[1727272871783,0.38143,2621.8,2621.7,0.405]
[1727272871983,0.38147,2621.6,2621.3,0.397]
[1727272872187,0.4011,2621.5,2621.3,0.397]
[1727272872376,0.4011,2621.5,2621.4,7.8313862]
[1727272872581,0.78258,2621.5,2621.4,7.8313862]
[1727272872775,0.4011,2621.5,2621.4,7.8313862]
[1727272872986,3.2078,2621.7,2621.4,11.6457862]
[1727272873189,3.2078,2621.7,2621.5,2.76147]
[1727272873486,3.2078,2621.7,2621.6,8.06852413]
[1727272874785,3.58925,2621.7,2621.6,8.06852413]
[1727272875091,0.38147,2621.6,2621.3,0.397]
[1727272875290,0.3757,2621.6,2621.3,0.7785]
[1727272875486,0.75716,2621.6,2621.4,7.98666119]
[1727272876592,1.33518,2621.5,2621.4,7.98666119]
[1727272876782,0.38155,2621.0,2620.9,0.384]
[1727272877190,0.38155,2621.0,2620.2,5.5878]
[1727272877191,0.38159,2620.8,2620.2,5.5878]
[1727272877394,0.38159,2620.8,2620.4,0.38163]
[1727272877586,0.3996,2620.9,2620.3,0.7894]
[1727272877587,0.3816,2620.7,2620.6,12.12933805]
[1727272877785,0.38162,2620.6,2620.3,8.79761893]
[1727272877998,2.76161,2620.6,2620.3,0.3902]
[1727272878195,0.3862,2620.8,2620.3,0.77184]
[1727272878387,0.76778,2620.8,2620.4,7.94404692]
[1727272878611,0.38161,2620.6,2620.4,7.94404692]
[1727272878800,3.58941,2620.6,2620.4,7.94404692]
[1727272878999,0.38161,2620.6,2620.4,7.94404692]
[1727272879192,0.3862,2620.8,2620.4,7.94404692]
[1727272879396,3.6074,2620.9,2620.4,10.32404692]
[1727272879696,0.38161,2620.6,2620.5,0.3992]
[1727272879900,0.38162,2620.5,2620.4,7.94404692]
[1727272880403,0.38162,2620.5,2619.9,3.2078]
[1727272880404,0.38169,2620.1,2619.9,3.2078]
[1727272880592,0.38169,2620.1,2619.7,0.3658]
[1727272880791,2.76167,2620.2,2620.0,8.22850879]
[1727272881098,2.76167,2620.2,2619.7,0.74754]
[1727272881099,2.76167,2620.2,2619.8,11.91007618]
[1727272881299,2.38,2620.2,2619.7,0.3658]
[1727272881515,2.38,2620.2,2619.6,0.388]
[1727272881699,2.7617,2620.0,2619.8,7.87971644]
[1727272881895,2.7617,2620.0,2619.6,0.388]
[1727272882295,0.38168,2620.2,2619.7,8.42272643]
[1727272882497,3.2078,2620.3,2619.8,2.38]
[1727272882796,0.38171,2619.9,2619.6,2.768]
[1727272883000,0.38173,2619.8,2619.6,0.388]
[1727272883203,3.2078,2620.0,2619.6,0.388]
[1727272883505,3.2078,2620.0,2619.6,2.768]
[1727272883701,2.7604,2620.4,2619.8,2.38]
[1727272883702,0.38167,2620.2,2619.8,2.38]
[1727272884202,3.58947,2620.2,2619.8,2.38]
[1727272884392,3.2078,2620.2,2619.6,2.768]
[1727272884594,0.3817,2620.0,2619.6,2.768]
[1727272884908,0.3817,2620.0,2619.8,8.15140229]
[1727272885096,0.3817,2620.0,2619.7,8.15140229]
[1727272885398,0.3817,2620.0,2619.6,3.14975]
[1727272885594,0.3817,2620.0,2619.7,8.09690657]
[1727272886095,0.38171,2619.9,2619.7,8.09690657]
[1727272886398,0.3817,2620.0,2619.7,8.09690657]
[1727272886589,2.38,2620.0,2619.7,8.09690657]
[1727272886791,0.3697,2619.9,2619.6,0.388]
[1727272886996,0.38173,2619.8,2619.6,0.388]
[1727272887291,0.3697,2619.9,2619.6,0.388]
[1727272887292,0.38174,2619.7,2619.6,0.388]
[1727272887498,3.5775,2619.9,2619.2,0.7499]
[1727272887701,3.5775,2619.9,2619.5,2.76176]
[1727272887890,3.5775,2619.9,2619.5,2.38]
[1727272888095,3.5775,2619.9,2619.6,0.38175]
[1727272888308,3.5775,2619.9,2619.7,0.38174]
[1727272888501,3.5775,2619.9,2619.6,0.38175]
[1727272888699,3.5775,2619.9,2619.7,0.38173]
[1727272888898,0.75141,2619.9,2619.5,2.76175]
[1727272889093,7.3168,2620.3,2619.8,0.38172]
[1727272889296,7.3168,2620.3,2620.0,2.38]
[1727272889497,0.3697,2620.4,2620.0,2.38]
[1727272889498,0.38167,2620.2,2620.0,2.38]
[1727272889898,0.3697,2620.4,2620.0,2.38]
[1727272890205,0.38165,2620.3,2620.0,2.38]
[1727272890399,0.38167,2620.2,2619.9,1.1511]
[1727272890702,0.38167,2620.2,2620.0,7.84618555]
[1727272891603,3.2078,2620.6,2620.0,7.84618555]
[1727272891805,0.95395,2620.8,2620.0,8.22518555]
[1727272891806,3.5807,2620.8,2620.0,8.22518555]
[1727272892303,0.3816,2620.7,2620.3,0.38164]
[1727272892506,0.3816,2620.7,2620.4,0.3772]
[1727272892707,0.3729,2620.8,2620.4,0.3772]
[1727272892708,0.38162,2620.5,2620.4,0.3772]
[1727272892900,0.3729,2620.8,2620.4,0.3772]
[1727272893094,0.3729,2620.8,2620.4,0.75883]
[1727272893095,0.75448,2620.8,2620.4,0.75883]
[1727272893407,0.75448,2620.8,2620.5,0.3714]
[1727272893611,0.3816,2620.7,2620.5,0.3714]
[1727272894106,0.38161,2620.6,2620.5,0.3714]
[1727272894299,0.38161,2620.6,2620.0,0.379]
[1727272894300,3.2078,2620.6,2620.0,0.379]
[1727272894604,3.2078,2620.6,2620.2,8.09085096]
[1727272894605,0.38164,2620.4,2620.2,8.09085096]
[1727272894798,0.38163,2620.5,2620.2,8.09085096]
[1727272894998,0.38163,2620.5,2620.2,0.3714]
[1727272895900,0.38165,2620.4,2620.2,0.3714]
[1727272896299,3.2078,2620.6,2620.2,0.3714]
[1727272896502,0.95406,2620.5,2620.2,0.3714]
[1727272896726,0.38169,2620.1,2619.7,0.38173]
[1727272896914,0.3817,2620.0,2619.8,0.7621]
[1727272897102,0.38169,2620.1,2619.8,8.99061871]
[1727272897298,4.91626,2620.3,2619.8,0.7621]
[1727272897512,3.9621,2620.3,2619.9,8.22851871]
[1727272897702,3.5775,2620.3,2619.9,8.61021871]
[1727272897905,3.95916,2620.3,2619.9,8.61021871]
[1727272898102,0.38167,2620.2,2619.9,8.22851871]
[1727272898317,3.95916,2620.3,2619.9,8.61021871]
[1727272898705,3.5775,2620.3,2619.9,8.22851871]
[1727272898909,3.2078,2620.3,2620.0,0.38168]
[1727272899111,0.38166,2620.2,2619.9,8.61021871]
[1727272899516,3.2078,2620.3,2620.0,0.38169]
[1727272899517,3.58946,2620.3,2620.0,0.38169]
[1727272899809,3.2078,2620.3,2619.9,8.22851871]
[1727272900008,3.2078,2620.3,2619.9,8.61021871]
[1727272900009,3.58946,2620.3,2619.9,8.61021871]
[1727272900202,3.2078,2620.3,2619.9,8.61021871]
[1727272900908,0.38167,2620.2,2619.9,8.61021871]
[1727272901211,3.2078,2620.3,2619.9,8.22851871]
[1727272901411,3.2078,2620.3,2619.8,0.7621]
[1727272901412,0.4034,2620.1,2619.8,0.7621]
[1727272901803,0.3817,2620.0,2619.8,0.7621]
[1727272902004,0.4034,2620.1,2619.8,0.7621]
[1727272902213,0.78509,2620.1,2619.8,0.7621]
[1727272902405,3.2078,2620.3,2619.8,0.7621]
[1727272902610,0.3836,2620.5,2620.1,0.38168]
[1727272903117,0.38166,2620.3,2620.0,0.38168]
[1727272903320,0.38167,2620.2,2620.0,0.38168]
[1727272903515,0.95411,2620.4,2619.9,8.16037215]
[1727272903812,0.3836,2620.5,2619.9,8.54208215]
[1727272903813,0.38167,2620.2,2619.9,8.54208215]
[1727272904012,0.38168,2620.1,2619.9,8.54208215]
[1727272904614,1.33768,2620.5,2619.9,8.16037215]
[1727272904919,0.3836,2620.5,2619.9,8.16037215]
[1727272905118,0.3836,2620.5,2620.0,0.38169]
[1727272905119,0.38166,2620.2,2620.0,0.38169]
[1727272905412,1.33767,2620.5,2620.1,0.38168]
[1727272905413,0.38166,2620.3,2620.1,0.38168]
[1727272905613,0.38164,2620.4,2620.2,0.38166]
[1727272905820,0.38164,2620.4,2620.3,0.3687]
[1727272909731,0.3836,2620.5,2620.3,0.3687]
[1727272909921,5.06292,2620.9,2620.3,0.3687]
[1727272910126,5.06292,2620.9,2620.4,0.7677]
[1727272910127,0.38162,2620.6,2620.4,0.7677]
[1727272910413,0.95395,2620.8,2620.4,0.7677]
[1727272910414,0.38162,2620.5,2620.4,0.7677]
[1727272910723,0.38162,2620.5,2620.4,0.3888]
[1727272911419,3.2078,2620.8,2620.4,0.3888]
[1727272911420,0.38161,2620.6,2620.4,0.3888]
[1727272911616,0.38162,2620.5,2620.4,0.3888]
[1727272911817,0.38162,2620.6,2620.4,0.3888]
[1727272912119,0.38162,2620.5,2620.4,0.3888]
[1727272913428,0.954,2620.7,2620.4,0.3888]
[1727272913628,0.38162,2620.5,2620.4,0.3888]
[1727272914314,0.38166,2620.3,2620.1,0.76058]
[1727272914518,0.38166,2620.3,2620.1,1.13088]
[1727272914713,0.38166,2620.3,2620.2,8.44939675]
[1727272916410,1.3309,2620.7,2620.2,8.44939675]
[1727272916411,0.954,2620.7,2620.2,8.44939675]
[1727272916614,0.38161,2620.6,2620.4,0.38164]
[1727272916820,0.38161,2620.6,2620.2,8.44939675]
[1727272917032,0.38161,2620.6,2620.3,0.38164]
[1727272918017,0.38161,2620.6,2620.4,0.38163]
[1727272918224,0.38161,2620.6,2620.3,0.38164]
[1727272918416,0.38161,2620.6,2620.2,8.44939675]
[1727272918724,0.95401,2620.7,2620.2,8.44939675]
[1727272918928,4.54367,2620.8,2620.2,8.83105675]
[1727272918929,0.38165,2620.4,2620.2,8.83105675]
[1727272919220,0.38163,2620.5,2620.3,0.38165]
[1727272920331,3.5897,2620.8,2620.2,8.44939675]
[1727272920543,0.38163,2620.5,2620.2,8.44939675]
[1727272920719,0.38163,2620.5,2620.3,0.38164]
[1727272920913,0.95399,2620.7,2620.2,8.44939675]
[1727272921225,0.38162,2620.5,2620.3,0.38164]
[1727272921423,0.95403,2620.6,2620.2,8.44939675]
[1727272921625,0.38165,2620.3,2620.2,8.44939675]
[1727272921824,0.38165,2620.3,2620.2,0.3722]
[1727272922025,0.38164,2620.4,2620.2,0.3722]
[1727272922226,0.38163,2620.5,2620.2,0.3722]
[1727272922430,0.38163,2620.5,2620.3,0.38164]
[1727272922633,4.54367,2620.8,2620.2,0.3722]
[1727272922939,0.3816,2620.7,2620.5,0.38161]
[1727272923125,0.3816,2620.7,2620.6,1.1818]
[1727272923327,3.2078,2620.8,2620.7,0.38159]
[1727272923526,0.95382,2621.2,2620.7,2.38]
[1727272923836,0.38156,2621.0,2620.8,0.38158]
[1727272924029,0.38156,2621.0,2620.8,8.2404144]
[1727272924221,0.38156,2620.9,2620.8,7.8588344]
[1727272925924,3.2078,2621.2,2621.0,0.38154]
[1727272926243,3.2078,2621.2,2620.8,7.8588344]
[1727272926244,3.2078,2621.2,2621.1,0.3841]
[1727272926427,0.38152,2621.3,2621.1,8.30510006]
[1727272926623,0.38152,2621.3,2621.2,0.384]
[1727272927225,4.109,2621.5,2621.2,0.384]
[1727272927433,3.5985,2621.6,2621.2,0.384]
[1727272927434,3.2078,2621.6,2621.2,0.384]
[1727272927629,0.38148,2621.5,2621.2,8.72475809]
[1727272928727,3.2078,2621.6,2621.3,2.38]
[1727272928936,0.38144,2621.8,2621.5,0.38147]
[1727272929232,0.38144,2621.8,2621.6,0.7579]
[1727272929758,13.679,2622.1,2621.7,2.38]
[1727272929759,0.398,2622.1,2621.7,2.38]
[1727272929967,0.398,2622.1,2621.7,10.72444899]
[1727272929968,0.38141,2622.0,2621.7,10.72444899]
[1727272930241,0.38138,2622.2,2621.8,0.38143]